bitfinex/quotes_BTCUSD_20250108
["timestamp","ask_amount","ask_price","bid_price","bid_amount"]
[1736294883964,0.0005811,96926.0,96925.0,1.82796192]
[1736294884167,0.0005811,96926.0,96925.0,1.80165988]
[1736294884925,0.0005811,96926.0,96925.0,2.14238803]
[1736294885852,8.54e-05,96938.0,96926.0,0.306342]
[1736294886054,8.54e-05,96938.0,96926.0,0.44027976]
[1736294886257,8.54e-05,96938.0,96926.0,0.48931038]
[1736294886454,8.54e-05,96938.0,96926.0,1.98931038]
[1736294886679,8.54e-05,96938.0,96926.0,2.00797111]
[1736294886881,8.54e-05,96938.0,96926.0,2.17987111]
[1736294887053,8.54e-05,96938.0,96928.0,0.2]
[1736294887259,8.54e-05,96938.0,96928.0,0.35796617]
[1736294887483,0.0799,96963.0,96943.0,0.1]
[1736294887680,0.28631806,96963.0,96953.0,1.5]
[1736294887887,0.28631806,96963.0,96954.0,0.13496613]
[1736294888102,0.00015306,96963.0,96958.0,0.09903441]
[1736294888300,0.00015306,96963.0,96962.0,0.09903441]
[1736294888549,0.00015306,96963.0,96962.0,0.13215427]
[1736294888749,0.00015306,96963.0,96962.0,1.681155]
[1736294888935,0.00015306,96963.0,96962.0,1.68292421]
[1736294889512,0.00015306,96963.0,96962.0,1.71592263]
[1736294890004,0.00015306,96963.0,96962.0,2.24082269]
[1736294890821,0.00015306,96963.0,96962.0,2.15635746]
[1736294891026,0.00015306,96963.0,96962.0,2.38875746]
[1736294891224,0.00015306,96963.0,96962.0,2.37441977]
[1736294891429,0.00015306,96963.0,96962.0,2.38469388]
[1736294891839,0.00015306,96963.0,96962.0,2.05229388]
[1736294892078,0.00015306,96963.0,96962.0,0.55229388]
[1736294892275,0.00015306,96963.0,96962.0,0.53100873]
[1736294892597,0.00015306,96963.0,96962.0,0.31848631]
[1736294893200,0.00015306,96963.0,96962.0,0.18029979]
[1736294893396,0.00015306,96963.0,96962.0,0.16985718]
[1736294893595,0.00015306,96963.0,96962.0,0.1421416]
[1736294893821,0.07565306,96963.0,96962.0,0.66530472]
[1736294894170,0.41075328,96968.0,96962.0,2.15811773]
[1736294894393,0.41075328,96968.0,96962.0,0.62602898]
[1736294894394,0.0485,96965.0,96962.0,0.62602898]
[1736294894804,0.206262,96964.0,96962.0,0.10183473]
[1736294895429,0.236262,96964.0,96962.0,0.10183473]
[1736294896045,0.03,96964.0,96962.0,0.10183473]
[1736294896247,8.54e-05,96973.0,96962.0,0.10183473]
[1736294896455,0.206245,96972.0,96963.0,0.04264131]
[1736294896659,8.54e-05,96973.0,96964.0,0.09903441]
[1736294896859,8.54e-05,96973.0,96964.0,0.10168622]
[1736294897068,8.54e-05,96973.0,96965.0,0.04366967]
[1736294897247,8.54e-05,96973.0,96966.0,0.09903441]
[1736294897682,8.54e-05,96973.0,96967.0,1.50265181]
[1736294897902,8.54e-05,96973.0,96968.0,0.09903441]
[1736294898525,8.54e-05,96973.0,96969.0,0.01327733]
[1736294898732,0.2063294,96973.0,96970.0,0.09903441]
[1736294899330,0.2063294,96973.0,96971.0,0.01327733]
[1736294899537,0.2063294,96973.0,96972.0,0.09903441]
[1736294899890,0.2063294,96973.0,96972.0,0.10965993]
[1736294900100,0.2063294,96973.0,96972.0,0.11231174]
[1736294900682,0.2063294,96973.0,96972.0,1.61231174]
[1736294901541,0.2063294,96973.0,96972.0,1.60168622]
[1736294904806,8.54e-05,96973.0,96972.0,1.60168622]
[1736294905007,8.54e-05,96973.0,96972.0,1.63374555]
[1736294905431,0.206216,96986.0,96972.0,1.6443848]
[1736294905755,0.206216,96986.0,96973.0,0.03309041]
[1736294905965,0.206216,96986.0,96974.0,0.13109374]
[1736294906160,0.206216,96986.0,96983.0,1.5]
[1736294906402,0.206215,96986.0,96984.0,0.09903441]
[1736294906795,0.206215,96986.0,96985.0,0.03473522]
[1736294906994,0.206215,96986.0,96985.0,1.64173275]
[1736294907221,0.206215,96986.0,96985.0,1.64440888]
[1736294907428,0.206205,96991.0,96985.0,1.64440888]
[1736294907429,0.206213,96987.0,96985.0,1.64440888]
[1736294907603,0.206213,96987.0,96986.0,0.09903441]
[1736294907815,0.206213,96987.0,96986.0,0.10967366]
[1736294908124,0.356213,96987.0,96986.0,0.11234979]
[1736294908541,0.356213,96987.0,96986.0,0.10171054]
[1736294909486,0.406213,96987.0,96986.0,0.10171054]
[1736294910868,0.406213,96987.0,96974.0,0.09211378]
[1736294910869,0.2754,96987.0,96974.0,0.09211378]
[1736294911042,0.206238,96975.0,96974.0,0.09211378]
[1736294911226,0.251738,96975.0,96974.0,0.09211378]
[1736294912312,0.251738,96975.0,96974.0,0.00267495]
[1736294912514,0.457977,96975.0,96972.0,1.5]
[1736294912773,0.22593576,96975.0,96974.0,0.00267495]
[1736294912973,0.43217476,96975.0,96972.0,1.5]
[1736294913214,0.22593576,96975.0,96974.0,0.00267495]
[1736294913343,0.38667476,96975.0,96972.0,1.5]
[1736294913543,0.18043576,96975.0,96974.0,0.00267495]
[1736294913784,0.38667476,96975.0,96972.0,1.5]
[1736294913994,0.38667476,96975.0,96974.0,0.00267495]
[1736294913995,0.18043576,96975.0,96974.0,0.00267495]
[1736294914195,0.38667476,96975.0,96972.0,1.5]
[1736294914417,0.18043576,96975.0,96974.0,0.00267495]
[1736294914616,0.38667476,96975.0,96972.0,1.5]
[1736294914826,0.18043576,96975.0,96974.0,0.00267495]
[1736294915027,0.38667476,96975.0,96972.0,1.5]
[1736294915320,0.39685029,96975.0,96972.0,1.5]
[1736294915534,0.19061129,96975.0,96973.0,0.00267495]
[1736294915926,0.19061129,96975.0,96972.0,1.5]
[1736294915927,0.39685029,96975.0,96972.0,1.5]
[1736294916156,0.19061129,96975.0,96974.0,0.00267495]
[1736294916434,0.19061129,96975.0,96972.0,1.5]
[1736294916643,0.19061129,96975.0,96974.0,0.00267495]
[1736294916780,0.19061129,96975.0,96973.0,0.00267716]
[1736294916975,0.19061129,96975.0,96972.0,1.5]
[1736294918023,0.19061129,96975.0,96974.0,0.01334923]
[1736294918442,0.19061129,96975.0,96974.0,0.00267716]
[1736294918683,0.19061129,96975.0,96972.0,1.5]
[1736294918888,0.19061129,96975.0,96973.0,0.03482722]
[1736294919088,0.03,96976.0,96974.0,0.13118447]
[1736294919289,0.03,96976.0,96975.0,0.03215006]
[1736294919498,0.03,96976.0,96975.0,0.14104687]
[1736294919857,0.03,96976.0,96975.0,1.66880036]
[1736294920274,0.206234,96977.0,96975.0,1.66880036]
[1736294920398,0.206217,96986.0,96976.0,0.13118447]
[1736294920629,0.206212,96988.0,96977.0,0.03215006]
[1736294920827,0.206205,96991.0,96978.0,0.13118447]
[1736294921033,0.206205,96991.0,96984.0,1.5]
[1736294921241,0.15,96990.0,96985.0,0.13118447]
[1736294921533,0.15,96990.0,96986.0,0.03482722]
[1736294921730,0.15,96990.0,96986.0,0.13386163]
[1736294921932,0.15,96988.0,96986.0,0.15172055]
[1736294922151,0.15,96988.0,96986.0,0.14453567]
[1736294922356,0.15,96988.0,96986.0,0.13386163]
[1736294923792,0.15,96988.0,96986.0,0.14453294]
[1736294924891,0.15,96988.0,96986.0,1.64453294]
[1736294925502,0.15,96988.0,96986.0,1.61238288]
[1736294926048,0.15,96988.0,96986.0,1.64455827]
[1736294926248,0.15,96988.0,96986.0,1.61238288]
[1736294926662,0.15,96988.0,96986.0,1.63388814]
[1736294926865,0.206193,96997.0,96986.0,1.64107217]
[1736294927069,0.206193,96997.0,96986.0,1.84728717]
[1736294927278,0.206186,97000.0,96986.0,1.93940095]
[1736294927531,0.15,96999.0,96986.0,1.98800095]
[1736294927730,0.206158,97013.0,96986.0,2.02809767]
[1736294927903,0.206172,97007.0,96996.0,0.206193]
[1736294928110,0.0002383,97001.0,96997.0,0.13386731]
[1736294928340,0.0002383,97001.0,96998.0,0.03217657]
[1736294928521,0.0002383,97001.0,96999.0,0.13121098]
[1736294928735,0.0002383,97001.0,96999.0,0.09903441]
[1736294929062,0.0002383,97001.0,97000.0,0.1520251]
[1736294929359,0.0002383,97001.0,97000.0,0.26973336]
[1736294929823,0.0002383,97001.0,97000.0,0.25824354]
[1736294930033,0.0002383,97001.0,97000.0,1.96091477]
[1736294931096,0.0002383,97001.0,97000.0,1.63658914]
[1736294931421,0.0002383,97001.0,97000.0,1.71568914]
[1736294931829,0.0002383,97001.0,97000.0,1.698644]
[1736294932032,0.0002383,97001.0,97000.0,1.88357672]
[1736294932865,0.0002383,97001.0,97000.0,2.03991459]
[1736294935674,0.0002383,97001.0,97000.0,2.22474645]
[1736294936741,0.0002383,97001.0,97000.0,2.03991459]
[1736294937180,0.0002383,97001.0,97000.0,2.0569364]
[1736294937602,0.0002383,97001.0,97000.0,2.03991459]
[1736294939271,0.0002383,97001.0,97000.0,2.05692984]
[1736294939690,0.0002383,97001.0,97000.0,2.11648984]
[1736294940125,0.0002383,97001.0,97000.0,2.10930581]
[1736294940309,0.0002383,97001.0,97000.0,1.76803522]
[1736294940515,0.0002383,97001.0,97000.0,1.69145997]
[1736294941158,0.0002383,97001.0,97000.0,1.61235997]
[1736294941757,0.1502383,97001.0,97000.0,1.61235997]
[1736294941963,0.17844629,97001.0,97000.0,1.60169074]
[1736294942169,0.17947874,97001.0,97000.0,1.50265633]
[1736294942373,0.17947874,97001.0,97000.0,0.00265633]
[1736294942804,0.15,96999.0,96992.0,1.5]
[1736294943009,0.3562,96993.0,96992.0,1.5]
[1736294944854,0.3562,96993.0,96992.0,1.59903441]
[1736294949476,0.3562852,96993.0,96992.0,1.59903441]
[1736294951683,0.3562852,96993.0,96992.0,0.09903441]
[1736294951887,0.356213,96987.0,96986.0,0.0001704]
[1736294952063,0.356213,96987.0,96986.0,0.09920481]
[1736294958254,0.356213,96987.0,96986.0,1.59920481]
[1736294958455,0.356213,96987.0,96986.0,1.6018685]
[1736294962720,0.356213,96987.0,96986.0,0.1018685]
[1736294963079,0.356213,96987.0,96986.0,1.59920481]
[1736294963379,0.356213,96987.0,96986.0,1.60187166]
[1736294967114,0.356213,96987.0,96986.0,1.61252731]
[1736294967349,0.206213,96987.0,96986.0,1.61252731]
[1736294967696,0.206213,96987.0,96986.0,1.61969539]
[1736294968494,0.206204,96991.0,96986.0,1.61969539]
[1736294968744,0.15,96991.0,96987.0,0.09903441]
[1736294968957,0.206211,96988.0,96987.0,0.11685814]
[1736294969188,0.206211,96988.0,96987.0,0.11952499]
[1736294969362,0.356211,96988.0,96987.0,0.0133225]
[1736294969876,0.356211,96988.0,96987.0,0.01065565]
[1736294970223,0.15,96987.0,96986.0,0.0001704]
[1736294971057,0.15,96987.0,96986.0,0.00282725]
[1736294971304,0.206211,96988.0,96986.0,0.0001704]
[1736294971894,0.206211,96988.0,96987.0,0.00265685]
[1736294975520,0.2062962,96988.0,96987.0,0.00265685]
[1736294975671,0.2062962,96988.0,96987.0,0.10169126]
[1736294975878,0.2062962,96988.0,96987.0,0.11236704]
[1736294976307,0.2062962,96988.0,96987.0,1.64456146]
[1736294976778,0.2062962,96988.0,96987.0,1.61236704]
[1736294976980,0.2062962,96988.0,96987.0,1.64455962]
[1736294977808,8.52e-05,96988.0,96987.0,1.6640992]
[1736294978021,8.52e-05,96988.0,96987.0,1.7409992]
[1736294978339,8.52e-05,96988.0,96987.0,1.75808166]
[1736294978724,0.15,96992.0,96987.0,1.77943365]
[1736294978918,0.15,96992.0,96988.0,0.13840541]
[1736294979119,0.2062862,96993.0,96989.0,0.03219258]
[1736294979321,8.52e-05,96993.0,96990.0,0.13388384]
[1736294979526,8.52e-05,96993.0,96991.0,0.03219258]
[1736294979749,0.1486572,96995.0,96992.0,0.13122699]
[1736294980103,0.1486572,96995.0,96993.0,0.03484943]
[1736294980288,0.1486572,96995.0,96994.0,0.13122699]
[1736294980779,0.1486572,96995.0,96994.0,0.1998768]
[1736294980988,0.1486572,96995.0,96994.0,0.6826877]
[1736294981473,0.1486572,96995.0,96994.0,0.64897455]
[1736294981679,0.1486572,96995.0,96994.0,0.64179613]
[1736294981894,0.1486572,96995.0,96994.0,0.16164208]
[1736294982512,0.1486572,96995.0,96994.0,0.16881412]
[1736294982716,0.14968965,96995.0,96994.0,0.13011537]
[1736294982920,0.14968965,96995.0,96994.0,0.12294333]
[1736294983351,0.14968965,96995.0,96994.0,0.09518509]
[1736294983656,0.15998817,96995.0,96994.0,0.00265685]
[1736294984156,0.356211,96988.0,96987.0,0.09252824]
[1736294984356,0.356211,96988.0,96985.0,1.13876351]
[1736294984357,0.15,96987.0,96985.0,1.0]
[1736294985438,0.206211,96988.0,96985.0,1.0]
[1736294987463,0.206211,96988.0,96987.0,0.04567501]
[1736294987668,0.2062963,96988.0,96987.0,0.18443852]
[1736294987922,8.53e-05,96988.0,96987.0,0.28347293]
[1736294988124,0.15,96992.0,96987.0,1.78347293]
[1736294988334,0.15,96994.0,96988.0,0.13120328]
[1736294988511,0.15,96994.0,96989.0,0.03216887]
[1736294988736,0.15,96994.0,96990.0,0.13120328]
[1736294988852,0.15,96994.0,96991.0,0.03216887]
[1736294989052,0.15,96994.0,96992.0,0.13120328]
[1736294989303,0.15,96995.0,96993.0,0.03216887]
[1736294989498,0.15,96995.0,96994.0,0.13120328]
[1736294989710,0.15,96995.0,96994.0,0.13837455]
[1736294989916,0.15,96995.0,96994.0,0.48310364]
[1736294990112,0.15,96995.0,96994.0,0.49376931]
[1736294991333,0.15,96995.0,96994.0,0.51083159]
[1736294991907,0.15,96995.0,96994.0,2.00366032]
[1736294992316,0.15,96995.0,96994.0,1.98659804]
[1736294992991,0.15,96995.0,96994.0,1.99376742]
[1736294993396,0.206194,96996.0,96994.0,1.98659804]
[1736294993637,0.206194,96996.0,96995.0,0.03216887]
[1736294993774,0.206194,96996.0,96995.0,0.13120328]
[1736294993977,0.206194,96996.0,96995.0,0.14452377]
[1736294994171,0.206194,96996.0,96995.0,0.15169261]
[1736294994711,0.206194,96996.0,96995.0,0.49376446]
[1736294996093,0.206194,96996.0,96995.0,1.99376446]
[1736294997930,0.206185,97000.0,96995.0,1.99376446]
[1736294998161,0.206185,97000.0,96996.0,0.13120328]
[1736294998369,0.0002383,97001.0,96997.0,0.03216887]
[1736294998532,0.0002383,97001.0,96998.0,0.39208774]
[1736294998732,0.0002383,97001.0,96999.0,0.03216887]
[1736294998938,0.0002383,97001.0,97000.0,0.13120328]
[1736294999143,0.0002383,97001.0,97000.0,0.14452213]
[1736294999363,0.0002383,97001.0,97000.0,0.15169097]
[1736294999992,0.0002383,97001.0,97000.0,1.69729097]
[1736295000165,0.0002383,97001.0,97000.0,1.70875394]
[1736295000380,0.0002383,97001.0,97000.0,2.08918761]
[1736295000583,0.0002383,97001.0,97000.0,2.10152386]
[1736295001147,0.40749096,97011.0,97000.0,2.10152386]
[1736295001484,0.40749096,97011.0,97001.0,0.03216887]
[1736295001685,0.40749096,97011.0,97002.0,0.13120328]
[1736295001848,0.40749096,97011.0,97009.0,1.5]
[1736295002055,0.40749096,97011.0,97010.0,0.13120328]
[1736295002267,0.40749096,97011.0,97010.0,0.14903779]
[1736295002459,0.40749096,97011.0,97010.0,0.15167498]
[1736295002659,0.40749096,97011.0,97010.0,0.67879875]
[1736295002904,0.40749096,97011.0,97010.0,0.62879875]
[1736295003353,0.40749096,97011.0,97010.0,0.64584426]
[1736295003554,0.40749096,97011.0,97010.0,0.46079234]
[1736295003784,0.20132796,97011.0,97010.0,0.43308116]
[1736295003947,0.20132796,97011.0,97010.0,0.46077958]
[1736295004352,0.20132796,97011.0,97010.0,0.443734]
[1736295004576,0.15,97014.0,97010.0,0.443734]
[1736295004813,0.206157,97013.0,97011.0,0.03216887]
[1736295004988,0.356157,97013.0,97012.0,0.13120328]
[1736295005365,0.206157,97013.0,97012.0,0.15166215]
[1736295005573,0.206157,97013.0,97012.0,1.65166215]
[1736295005988,0.206157,97013.0,97012.0,1.993734]
[1736295008351,0.206157,97013.0,97012.0,1.97591232]
[1736295008802,0.206157,97013.0,97012.0,1.94374345]
[1736295009564,0.206157,97013.0,97012.0,1.6016716]
[1736295009693,0.206157,97013.0,97012.0,1.61231656]
[1736295010353,0.206157,97013.0,97012.0,1.7368528]
[1736295010613,0.206157,97013.0,97012.0,1.70474886]
[1736295011086,0.2062423,97013.0,97012.0,1.6016716]
[1736295011348,0.2062423,97013.0,97012.0,1.63377474]
[1736295012004,0.01059312,97019.0,97015.0,0.4376027]
[1736295012253,0.20717945,97018.0,97015.0,0.4376027]
[1736295012747,0.206147,97018.0,97016.0,0.101673]
[1736295012985,0.206142,97021.0,97016.0,0.101673]
[1736295013193,0.206133,97025.0,97016.0,0.101673]
[1736295013194,0.01053839,97023.0,97016.0,0.101673]
[1736295013343,0.206138,97022.0,97017.0,0.01064195]
[1736295013549,0.206138,97022.0,97018.0,0.09903441]
[1736295013759,8.53e-05,97023.0,97018.0,0.10166741]
[1736295013969,0.2062223,97023.0,97018.0,0.10166741]
[1736295014397,0.2062223,97023.0,97019.0,1.51064177]
[1736295014597,0.2062223,97023.0,97020.0,0.09903441]
[1736295014733,0.2062223,97023.0,97020.0,0.10166574]
[1736295014933,0.2062223,97023.0,97021.0,0.01064177]
[1736295015134,0.2062223,97023.0,97022.0,1.59903441]
[1736295015638,8.53e-05,97023.0,97022.0,1.60166574]
[1736295015890,8.53e-05,97023.0,97022.0,1.61230751]
[1736295016142,8.53e-05,97023.0,97022.0,1.65920751]
[1736295016408,0.05,97049.0,97022.0,1.85344821]
[1736295016623,0.00050989,97036.0,97033.0,0.0772]
[1736295016867,0.00050989,97036.0,97034.0,0.10006482]
[1736295017074,0.00050989,97036.0,97035.0,1.5]
[1736295017291,0.00050989,97036.0,97035.0,1.60619845]
[1736295017488,0.00050989,97036.0,97035.0,1.63650458]
[1736295018582,0.00050989,97036.0,97035.0,1.68550458]
[1736295022031,0.1550339,97045.0,97035.0,1.68550458]
[1736295022234,0.1551868,97045.0,97036.0,0.09903441]
[1736295022811,0.1551868,97045.0,97037.0,0.03747017]
[1736295023034,0.0001529,97045.0,97038.0,0.09903441]
[1736295023229,0.0001529,97045.0,97038.0,0.13388092]
[1736295023626,0.0001529,97045.0,97039.0,0.0097877]
[1736295023826,0.206101,97040.0,97039.0,0.0097877]
[1736295024028,0.206101,97040.0,97039.0,0.03747017]
[1736295024388,0.206101,97040.0,97039.0,0.03030613]
[1736295024591,0.206101,97040.0,97039.0,0.00262366]
[1736295025068,0.206103,97039.0,97020.0,0.0924323]
[1736295025396,0.20614,97021.0,97020.0,0.0924323]
[1736295025773,0.20614,97021.0,97020.0,1.5924323]
[1736295026153,0.20614,97021.0,97020.0,1.50715625]
[1736295026358,0.20614,97021.0,97020.0,1.51779914]
[1736295026552,0.20614,97021.0,97020.0,1.61683355]
[1736295026814,0.20614,97021.0,97020.0,1.6096773]
[1736295028455,0.20614,97021.0,97020.0,1.61683688]
[1736295029185,0.206129,97027.0,97020.0,1.61683688]
[1736295029404,0.206129,97027.0,97021.0,0.09903441]
[1736295029585,0.206129,97027.0,97021.0,0.10619399]
[1736295030057,0.206129,97027.0,97022.0,0.01064289]
[1736295030247,0.206136,97024.0,97023.0,0.09903441]
[1736295030466,0.206136,97024.0,97023.0,0.1096773]
[1736295030939,0.206136,97024.0,97023.0,0.11683688]
[1736295031354,0.206136,97024.0,97023.0,0.14893892]
[1736295031788,0.206136,97024.0,97023.0,0.16598945]
[1736295032402,0.206136,97024.0,97023.0,0.16962422]
[1736295033024,0.206136,97024.0,97023.0,1.66962422]
[1736295034380,0.206136,97024.0,97023.0,1.76205652]
[1736295034793,0.206136,97024.0,97023.0,1.74501157]
[1736295035030,0.206136,97024.0,97023.0,1.65257927]
[1736295035237,0.2062213,97024.0,97023.0,1.65257927]
[1736295035408,8.53e-05,97024.0,97023.0,1.65257927]
[1736295035838,8.53e-05,97024.0,97023.0,1.66962862]
[1736295036051,8.53e-05,97024.0,97023.0,1.80828551]
[1736295036833,8.53e-05,97024.0,97023.0,2.01075351]
[1736295037504,8.53e-05,97024.0,97023.0,1.99370416]
[1736295038975,0.206129,97027.0,97023.0,2.17864795]
[1736295039178,0.206129,97027.0,97024.0,0.03210762]
[1736295039478,0.206129,97027.0,97026.0,0.13868156]
[1736295039707,0.206129,97027.0,97026.0,0.26982359]
[1736295040100,0.206129,97027.0,97026.0,0.28411064]
[1736295040521,0.281578,97051.0,97026.0,0.36907277]
[1736295040657,0.00103245,97050.0,97027.0,0.13114203]
[1736295040893,0.00103245,97050.0,97028.0,0.03926975]
[1736295041092,0.206116,97033.0,97029.0,0.13114203]
[1736295041298,0.206116,97033.0,97030.0,0.03210762]
[1736295041616,0.206116,97033.0,97032.0,1.5]
[1736295041814,0.206116,97033.0,97032.0,1.63114203]
[1736295042012,0.206116,97033.0,97032.0,1.65884162]
[1736295042251,0.206116,97033.0,97032.0,1.68110543]
[1736295042539,0.20611,97036.0,97032.0,1.70242786]
[1736295042732,0.20611,97036.0,97033.0,0.13114203]
[1736295042909,0.20611,97036.0,97034.0,0.03210762]
[1736295043109,0.20611,97036.0,97035.0,0.13114203]
[1736295043309,0.20611,97036.0,97035.0,0.36515054]
[1736295043551,0.20611,97036.0,97035.0,0.36878919]
[1736295043868,0.20611,97036.0,97035.0,0.37595132]
[1736295044397,0.20611,97036.0,97035.0,0.51103497]
[1736295044811,0.206104,97039.0,97035.0,0.51103497]
[1736295045036,0.206104,97039.0,97036.0,0.03210762]
[1736295045242,0.0001529,97045.0,97038.0,0.0833]
[1736295045446,0.0001529,97045.0,97039.0,0.13114203]
[1736295045654,0.0001529,97045.0,97040.0,0.03210762]
[1736295045862,0.0001529,97045.0,97041.0,0.13114203]
[1736295046086,0.0001529,97045.0,97042.0,0.03210762]
[1736295046286,0.0001529,97045.0,97043.0,0.13114203]
[1736295046489,0.0001529,97045.0,97044.0,1.53210762]
[1736295046694,0.0001529,97045.0,97044.0,1.8624335]
[1736295046904,0.0001529,97045.0,97044.0,1.88386388]
[1736295047433,0.0001529,97045.0,97044.0,1.65257241]
[1736295048680,0.0001529,97045.0,97044.0,1.66962744]
[1736295049097,0.0001529,97045.0,97044.0,2.01107059]
[1736295049303,0.0001529,97045.0,97044.0,2.00390846]
[1736295050075,0.0001529,97045.0,97044.0,1.98685343]
[1736295050278,0.0001529,97045.0,97044.0,2.17184492]
[1736295050778,0.00118535,97045.0,97044.0,0.57281051]
[1736295051046,0.0001529,97045.0,97044.0,0.54070289]
[1736295051285,0.0001529,97045.0,97044.0,0.00362536]
[1736295052275,0.618276,97044.0,97036.0,0.09251426]
[1736295052499,0.0001529,97045.0,97037.0,0.0036244]
[1736295052876,0.206104,97038.0,97037.0,0.0036244]
[1736295053647,0.206104,97038.0,97037.0,0.03576743]
[1736295054259,0.15453231,97038.0,97037.0,0.03576743]
[1736295054584,0.412188,97043.0,97037.0,0.0036244]
[1736295054585,0.206094,97043.0,97037.0,0.0036244]
[1736295055148,0.206094,97043.0,97037.0,0.09615578]
[1736295055745,0.206104,97038.0,97037.0,0.09615578]
[1736295056196,0.206104,97038.0,97037.0,0.0036244]
[1736295056397,0.206104,97038.0,97037.0,1.5036244]
[1736295056606,0.206104,97038.0,97037.0,1.51428535]
[1736295056998,0.206104,97038.0,97037.0,1.5036244]
[1736295058997,0.206104,97038.0,97037.0,1.65303716]
[1736295060327,0.21636574,97038.0,97037.0,1.98412671]
[1736295060561,0.29776574,97038.0,97037.0,0.48412671]
[1736295060739,0.32076574,97038.0,97037.0,0.48412671]
[1736295061159,0.32076574,97038.0,97037.0,0.0036244]
[1736295061334,0.52687074,97038.0,97035.0,0.4376027]
[1736295061536,0.52687074,97038.0,97036.0,0.00362793]
[1736295061837,0.50387074,97038.0,97036.0,0.00362793]
[1736295062041,0.42247074,97038.0,97036.0,0.00362793]
[1736295062232,0.00103245,97037.0,97036.0,0.00362793]
[1736295062919,0.00103245,97037.0,97036.0,1.50362793]
[1736295063078,0.42247074,97038.0,97036.0,1.50362793]
[1736295065374,0.42247074,97038.0,97036.0,1.59622441]
[1736295065525,0.21636574,97038.0,97037.0,0.03215834]
[1736295065725,0.21636574,97038.0,97037.0,0.03579255]
[1736295066142,0.21636574,97038.0,97037.0,1.53579255]
[1736295066325,0.2061893,97038.0,97037.0,1.62838903]
[1736295067347,0.2061893,97038.0,97037.0,1.87760854]
[1736295067689,0.2061893,97038.0,97037.0,1.88827352]
[1736295068851,0.2061893,97038.0,97037.0,1.87760854]
[1736295069844,0.2061893,97038.0,97037.0,2.06263706]
[1736295070527,0.2061893,97038.0,97037.0,1.87760854]
[1736295073452,0.2061893,97038.0,97037.0,1.97664295]
[1736295073683,8.53e-05,97038.0,97037.0,1.97664295]
[1736295074052,8.53e-05,97038.0,97037.0,2.06421014]
[1736295074252,8.53e-05,97038.0,97037.0,2.07487618]
[1736295074453,0.0001529,97045.0,97038.0,0.0492]
[1736295074678,0.0001529,97045.0,97039.0,0.13119275]
[1736295074885,0.0001529,97045.0,97040.0,0.11195834]
[1736295075213,0.0001529,97045.0,97044.0,1.59903441]
[1736295075337,0.0001529,97045.0,97044.0,1.71099275]
[1736295075536,0.0001529,97045.0,97044.0,1.76367418]
[1736295075834,0.0001529,97045.0,97044.0,1.78230546]
[1736295077422,0.0001529,97045.0,97044.0,2.60251866]
[1736295079988,0.0001529,97045.0,97044.0,2.59105457]
[1736295080199,0.0001529,97045.0,97044.0,2.56972669]
[1736295080613,0.0001529,97045.0,97044.0,2.84732241]
[1736295081369,0.0001529,97045.0,97044.0,2.09126899]
[1736295082965,0.0001529,97045.0,97044.0,2.07420229]
[1736295083355,0.0001529,97045.0,97044.0,2.0670351]
[1736295083966,0.0001529,97045.0,97044.0,1.9872351]
[1736295084220,0.0001529,97045.0,97044.0,0.35604235]
[1736295084388,0.00127065,97045.0,97044.0,0.35604235]
[1736295084918,0.0002382,97045.0,97044.0,0.34537631]
[1736295085352,0.0002382,97045.0,97044.0,0.00362081]
[1736295085493,0.00127065,97045.0,97041.0,0.09254532]
[1736295085712,0.412184,97044.0,97042.0,0.00348968]
[1736295085915,0.00103245,97043.0,97042.0,0.00348968]
[1736295086319,0.206096,97042.0,97040.0,1.5]
[1736295086535,0.206096,97042.0,97041.0,0.00348968]
[1736295086776,0.236096,97042.0,97041.0,0.00348968]
[1736295088016,0.387396,97042.0,97041.0,0.00348968]
[1736295088407,0.379104,97038.0,97037.0,0.0001706]
[1736295088609,0.455804,97038.0,97037.0,0.0001706]
[1736295090509,0.432804,97038.0,97037.0,0.0001706]
[1736295091477,0.282804,97038.0,97037.0,0.0001706]
[1736295092466,0.282804,97038.0,97037.0,0.00354396]
[1736295093760,0.455804,97038.0,97037.0,0.0001706]
[1736295098856,0.379104,97038.0,97037.0,0.0001706]
[1736295102871,0.356104,97038.0,97037.0,0.0001706]
[1736295103583,0.206104,97038.0,97037.0,0.0001706]
[1736295106941,0.206104,97038.0,97037.0,0.00357069]
[1736295109133,0.2061893,97038.0,97037.0,0.00357069]
[1736295112454,0.2061893,97038.0,97037.0,0.08637069]
[1736295112701,0.2061893,97038.0,97037.0,0.0829706]
[1736295112938,0.2061893,97038.0,97037.0,0.0863675]
[1736295113229,8.53e-05,97038.0,97037.0,0.19605777]
[1736295113485,0.206104,97039.0,97037.0,0.25253726]
[1736295113728,0.206104,97039.0,97038.0,0.09903441]
[1736295113971,0.206096,97042.0,97038.0,0.09903441]
[1736295114161,0.412193,97042.0,97038.0,0.13392793]
[1736295114447,0.412193,97042.0,97039.0,0.0033969]
[1736295114691,0.412193,97042.0,97040.0,0.09903441]
[1736295114943,0.206096,97042.0,97040.0,0.09903441]
[1736295115211,0.0002382,97045.0,97041.0,0.11459045]
[1736295115469,0.0002382,97045.0,97042.0,0.13114537]
[1736295115720,0.0002382,97045.0,97043.0,0.03211096]
[1736295115976,0.0002382,97045.0,97044.0,0.13114537]
[1736295116229,0.0002382,97045.0,97044.0,0.16943377]
[1736295116475,0.206078,97051.0,97044.0,0.16943377]
[1736295116727,0.206078,97051.0,97045.0,0.03211096]
[1736295116954,0.206078,97051.0,97046.0,0.13114537]
[1736295117130,0.206078,97051.0,97047.0,0.03211096]
[1736295117334,0.206078,97051.0,97048.0,1.63114537]
[1736295117627,0.206078,97051.0,97049.0,0.03211096]
[1736295117829,0.206078,97051.0,97050.0,0.13114537]
[1736295118050,0.206078,97051.0,97050.0,0.13452119]
[1736295118241,0.206072,97054.0,97050.0,0.14170068]
[1736295118384,0.206072,97054.0,97051.0,0.03211096]
[1736295118570,0.206072,97054.0,97052.0,0.13114537]
[1736295118784,0.00015238,97056.0,97053.0,0.03211096]
[1736295118998,0.00015238,97056.0,97054.0,0.20924606]
[1736295119191,0.00015238,97056.0,97055.0,0.03211165]
[1736295119412,0.00015238,97056.0,97055.0,0.1062139]
[1736295119623,0.00015238,97056.0,97055.0,0.12024558]
[1736295119860,0.00015238,97056.0,97055.0,0.11306609]
[1736295121246,0.00015238,97056.0,97055.0,1.61306609]
[1736295121787,0.00015238,97056.0,97055.0,1.60241023]
[1736295122187,0.02315238,97056.0,97055.0,0.00337582]
[1736295122392,0.50242,97056.0,97055.0,0.00337582]
[1736295122596,0.15,97055.0,97048.0,0.09254532]
[1736295122803,0.023,97048.0,97047.0,0.09254532]
[1736295123015,0.45216686,97048.0,97047.0,0.09254532]